bitfinex/quotes_BTCUSD_20250529
["timestamp","ask_amount","ask_price","bid_price","bid_amount"]
[1748545234481,0.32943822,105910.0,105900.0,0.0031]
[1748545234704,0.42049217,105910.0,105900.0,0.0031]
[1748545235157,0.42030628,105910.0,105900.0,0.0031]
[1748545235384,0.72350628,105910.0,105900.0,0.0051]
[1748545235843,0.64831478,105910.0,105900.0,0.0051]
[1748545236583,0.64815972,105910.0,105900.0,0.0051]
[1748545237262,0.74631972,105910.0,105900.0,0.0051]
[1748545238077,0.74599972,105910.0,105900.0,0.0051]
[1748545238318,0.74577257,105910.0,105900.0,0.0001]
[1748545238681,0.74577257,105910.0,105900.0,0.0021]
[1748545238866,0.74577257,105910.0,105900.0,0.0001]
[1748545239395,0.74777257,105910.0,105900.0,0.0001]
[1748545240799,0.34677257,105910.0,105900.0,0.0001]
[1748545240960,0.64921257,105910.0,105900.0,0.0001]
[1748545242405,0.34677257,105910.0,105900.0,0.0001]
[1748545242610,0.64901257,105910.0,105900.0,0.0001]
[1748545242808,0.64887537,105910.0,105900.0,0.0001]
[1748545244537,0.64855537,105910.0,105900.0,0.0001]
[1748545245404,0.29983537,105910.0,105900.0,0.0001]
[1748545245636,0.60159537,105910.0,105900.0,0.0001]
[1748545246476,0.2996758,105910.0,105900.0,0.0001]
[1748545246680,0.21839661,105910.0,105900.0,0.0001]
[1748545246895,0.21839661,105910.0,105900.0,1.13700906]
[1748545246896,0.20862185,105910.0,105900.0,1.13700906]
[1748545247094,0.33414302,105920.0,105910.0,0.35454085]
[1748545247322,0.33414302,105920.0,105910.0,1.10873362]
[1748545247669,0.23414302,105920.0,105910.0,1.38862671]
[1748545247870,0.23414302,105920.0,105910.0,1.30174015]
[1748545248069,0.23414302,105920.0,105910.0,1.49057973]
[1748545248327,0.23414302,105920.0,105910.0,1.4905799]
[1748545248480,0.23414302,105920.0,105910.0,1.30174032]
[1748545248657,0.33414302,105920.0,105910.0,1.29429835]
[1748545249096,0.33414302,105920.0,105910.0,1.48313793]
[1748545249307,0.33414302,105920.0,105910.0,1.29429835]
[1748545249519,0.28896963,105920.0,105910.0,1.29429835]
[1748545249858,0.18896963,105920.0,105910.0,1.29429835]
[1748545250072,0.28896963,105920.0,105910.0,1.29429835]
[1748545251439,0.28896963,105920.0,105910.0,1.69429835]
[1748545251644,0.28896963,105920.0,105910.0,1.69721801]
[1748545252066,0.28896963,105920.0,105910.0,1.6972212]
[1748545252511,0.59966439,105920.0,105910.0,0.44045475]
[1748545252725,0.32802358,105920.0,105910.0,0.09753178]
[1748545252945,0.62906358,105920.0,105910.0,0.002]
[1748545253611,0.32802358,105920.0,105910.0,0.002]
[1748545253884,0.32802358,105920.0,105910.0,0.61005165]
[1748545253885,0.22264439,105920.0,105910.0,0.61005165]
[1748545254093,0.22264439,105920.0,105910.0,0.06103384]
[1748545254094,0.52234439,105920.0,105910.0,0.06103384]
[1748545254316,0.53636963,105920.0,105910.0,0.06203384]
[1748545254745,0.62742358,105920.0,105910.0,0.001]
[1748545257987,0.62742358,105920.0,105910.0,0.0011]
[1748545259919,0.60330358,105920.0,105910.0,0.0011]
[1748545260582,0.30262358,105920.0,105910.0,0.0011]
[1748545260847,0.18896963,105920.0,105910.0,0.0011]
[1748545261057,0.18896963,105920.0,105910.0,0.60915165]
[1748545261058,0.29874439,105920.0,105910.0,0.60915165]
[1748545261269,0.59934439,105920.0,105910.0,0.67311642]
[1748545261493,0.18896963,105920.0,105910.0,1.16441122]
[1748545261943,0.18896963,105920.0,105910.0,1.56441122]
[1748545261944,0.28896963,105920.0,105910.0,1.56441122]
[1748545262169,0.28896963,105920.0,105910.0,0.06506477]
[1748545262392,0.31236963,105920.0,105910.0,0.0021]
[1748545262622,0.31236963,105920.0,105910.0,0.0011]
[1748545262890,0.30342358,105920.0,105910.0,0.0031]
[1748545263313,0.29874439,105920.0,105910.0,0.0031]
[1748545263515,0.59934439,105920.0,105910.0,0.6256925]
[1748545263754,0.49934439,105920.0,105910.0,0.71820372]
[1748545263956,0.48956963,105920.0,105910.0,0.72122466]
[1748545264424,0.48956963,105920.0,105910.0,0.72135309]
[1748545264837,0.18896963,105920.0,105910.0,0.72135309]
[1748545265948,0.18896963,105920.0,105910.0,0.73811372]
[1748545266157,0.28896963,105920.0,105910.0,0.73811372]
[1748545266574,0.18896963,105920.0,105910.0,0.73811372]
[1748545266821,0.28896963,105920.0,105910.0,0.73811372]
[1748545267030,0.28896963,105920.0,105910.0,0.73811364]
[1748545268370,0.00958834,105920.0,105910.0,1.42289058]
[1748545268622,0.02847023,105920.0,105910.0,1.4446969]
[1748545269066,0.22673271,105920.0,105910.0,1.43525555]
[1748545269271,0.22673333,105920.0,105910.0,1.43525573]
[1748545269742,0.22673333,105920.0,105910.0,1.40693034]
[1748545269743,0.2172926,105920.0,105910.0,1.40693034]
[1748545269975,0.2172926,105920.0,105910.0,1.42581419]
[1748545270221,0.2172926,105920.0,105910.0,1.43525599]
[1748545270459,0.00014788,105920.0,105910.0,1.75385896]
[1748545270744,0.00958825,105920.0,105910.0,2.15483133]
[1748545271250,0.02846944,105920.0,105910.0,2.15483133]
[1748545271495,0.02846944,105920.0,105910.0,2.15383133]
[1748545271739,0.00958825,105920.0,105910.0,2.15383133]
[1748545271980,0.00958834,105920.0,105910.0,3.29596733]
[1748545272218,0.00014788,105920.0,105910.0,3.29396733]
[1748545272467,0.00014788,105920.0,105910.0,3.29696733]
[1748545272709,0.00014788,105920.0,105910.0,3.29896733]
[1748545272946,0.00014788,105920.0,105910.0,3.29507179]
[1748545273173,0.20764483,105950.0,105940.0,0.60036625]
[1748545273420,0.30764483,105950.0,105940.0,1.24389853]
[1748545273881,0.30764483,105950.0,105940.0,1.64389853]
[1748545274336,0.30764483,105950.0,105940.0,1.54917853]
[1748545274602,0.30764483,105950.0,105940.0,1.64389853]
[1748545275069,0.30764483,105950.0,105940.0,1.64399853]
[1748545275289,0.30764483,105950.0,105940.0,1.46122458]
[1748545275510,0.30764483,105950.0,105940.0,1.55594458]
[1748545276000,0.30755764,105950.0,105940.0,1.55794458]
[1748545276978,0.20755764,105950.0,105940.0,1.64899853]
[1748545277345,0.30755764,105950.0,105940.0,1.69399853]
[1748545277613,0.20755764,105950.0,105940.0,1.69399853]
[1748545278369,0.29266637,105960.0,105950.0,0.00943832]
[1748545278612,0.29266637,105960.0,105950.0,0.55997434]
[1748545278613,0.39280591,105960.0,105950.0,0.55997434]
[1748545278851,0.39280591,105960.0,105950.0,1.16802599]
[1748545279091,0.39280591,105960.0,105950.0,1.54632599]
[1748545279336,0.39280591,105960.0,105950.0,1.54632458]
[1748545279554,0.39280591,105960.0,105950.0,1.54832458]
[1748545280047,0.40258067,105960.0,105950.0,0.44085983]
[1748545280282,0.40258067,105960.0,105950.0,0.42329953]
[1748545280547,0.42508067,105960.0,105950.0,0.35954085]
[1748545280787,0.42508067,105960.0,105950.0,0.35964085]
[1748545284097,0.42508067,105960.0,105950.0,0.0051]
[1748545284098,0.42895986,105960.0,105950.0,0.0051]
[1748545284343,0.50415136,105960.0,105950.0,0.0051]
[1748545285073,0.50415136,105960.0,105950.0,0.0031]
[1748545285310,0.42895986,105960.0,105950.0,0.0001]
[1748545286043,0.43195986,105960.0,105950.0,0.0001]
[1748545287915,0.82483986,105960.0,105950.0,0.0001]
[1748545292827,0.82427986,105960.0,105950.0,0.0001]
[1748545293552,0.52667986,105960.0,105950.0,0.0001]
[1748545293792,0.82415986,105960.0,105950.0,0.0001]
[1748545294263,0.80155986,105960.0,105950.0,0.0001]
[1748545294510,0.41302591,105960.0,105950.0,0.60829067]
[1748545294741,0.69774067,105960.0,105950.0,0.66912974]
[1748545294991,0.60302067,105960.0,105950.0,0.66912974]
[1748545295463,0.61224591,105960.0,105950.0,0.06107809]
[1748545295717,0.30258067,105960.0,105950.0,0.06107809]
[1748545295963,0.30258067,105960.0,105950.0,0.62383152]
[1748545296386,0.59990067,105960.0,105950.0,0.62383152]
[1748545296389,0.82109986,105960.0,105950.0,0.00123902]
[1748545296590,0.42905986,105960.0,105950.0,0.00123902]
[1748545296740,0.82249986,105960.0,105950.0,0.00123902]
[1748545297194,1.65413344,105960.0,105950.0,0.00123902]
[1748545297411,1.67405759,105960.0,105950.0,0.00123902]
[1748545297630,0.19820651,105950.0,105940.0,0.0001]
[1748545297851,0.70480669,105950.0,105940.0,0.0001]
[1748545298683,1.06768046,105950.0,105940.0,0.0001]
[1748545298884,0.67516046,105950.0,105940.0,0.0001]
[1748545299110,1.47536046,105950.0,105940.0,0.0001]
[1748545300046,1.48136046,105950.0,105940.0,0.0001]
[1748545301038,1.50590131,105950.0,105940.0,0.0001]
[1748545301280,1.53409527,105950.0,105940.0,0.0001]
[1748545301913,1.53390031,105950.0,105940.0,0.0001]
[1748545302594,1.53374235,105950.0,105940.0,0.0001]
[1748545302802,1.53254235,105950.0,105940.0,0.0001]
[1748545303252,1.53237654,105950.0,105940.0,0.0001]
[1748545304205,1.50783569,105950.0,105940.0,0.0001]
[1748545304693,1.11655569,105950.0,105940.0,0.0001]
[1748545304902,1.21023569,105950.0,105940.0,0.0001]
[1748545305113,1.50767569,105950.0,105940.0,0.0001]
[1748545305331,1.08829469,105950.0,105940.0,0.0001]
[1748545305557,1.47945469,105950.0,105940.0,0.0001]
[1748545305801,1.18178746,105950.0,105940.0,0.0001]
[1748545306025,1.47930746,105950.0,105940.0,0.0001]
[1748545307496,1.08792935,105950.0,105940.0,0.0001]
[1748545308013,1.47916935,105950.0,105940.0,0.0001]
[1748545308222,1.47912935,105950.0,105940.0,0.0001]
[1748545309644,0.38790935,105950.0,105940.0,0.0001]
[1748545310058,0.68542935,105950.0,105940.0,0.0001]
[1748545310486,0.67938935,105950.0,105940.0,0.0001]
[1748545310699,0.68338935,105950.0,105940.0,0.0001]
[1748545311093,0.68438935,105950.0,105940.0,0.0001]
[1748545312097,0.68438935,105950.0,105940.0,0.00021787]
[1748545313107,0.72898935,105950.0,105940.0,0.00021787]
[1748545314363,0.33782935,105950.0,105940.0,0.00021787]
[1748545314583,0.72858935,105950.0,105940.0,0.00021787]
[1748545314945,0.72866935,105950.0,105940.0,0.00021787]
[1748545315788,0.33782935,105950.0,105940.0,0.00021787]
[1748545316377,0.72854935,105950.0,105940.0,0.00021787]
[1748545316816,0.68434935,105950.0,105940.0,0.00021787]
[1748545317039,0.73084935,105950.0,105940.0,0.00021787]
[1748545317476,1.09097614,105950.0,105940.0,0.00021787]
[1748545317723,1.09101614,105950.0,105940.0,0.00021787]
[1748545317938,0.69985614,105950.0,105940.0,0.00021787]
[1748545318164,1.09109614,105950.0,105940.0,0.00021787]
[1748545318855,1.0821509,105950.0,105940.0,0.00021787]
[1748545319068,1.07096935,105950.0,105940.0,0.00021787]
[1748545319287,1.0821509,105950.0,105940.0,0.00021787]
[1748545319519,0.6909109,105950.0,105940.0,0.00021787]
[1748545319747,1.07084935,105950.0,105940.0,0.00021787]
[1748545319977,0.38690935,105950.0,105940.0,0.00021787]
[1748545320206,0.29322935,105950.0,105940.0,0.00021787]
[1748545320648,0.38690935,105950.0,105940.0,0.00021787]
[1748545320872,0.68430935,105950.0,105940.0,0.00021787]
[1748545321087,0.68426935,105950.0,105940.0,0.00021787]
[1748545321768,0.7058118,105950.0,105940.0,0.00021787]
[1748545322240,0.7275118,105950.0,105940.0,0.00021787]
[1748545323093,0.7058118,105950.0,105940.0,0.00021787]
[1748545323806,0.7279118,105950.0,105940.0,0.00021787]
[1748545324596,0.74802303,105950.0,105940.0,0.00021787]
[1748545325120,0.74874303,105950.0,105940.0,0.00021787]
[1748545325352,0.70460303,105950.0,105940.0,0.00021787]
[1748545325639,0.31296303,105950.0,105940.0,0.00021787]
[1748545325976,0.3865318,105950.0,105940.0,0.00021787]
[1748545326000,0.6856518,105950.0,105940.0,0.00021787]
[1748545326423,0.6386918,105950.0,105940.0,0.00021787]
[1748545326640,0.35976303,105950.0,105940.0,0.00021787]
[1748545326852,0.75252047,105950.0,105940.0,0.00021787]
[1748545327074,0.31300047,105950.0,105940.0,0.00021787]
[1748545327302,0.30180676,105950.0,105940.0,0.00021787]
[1748545327524,0.6859718,105950.0,105940.0,0.00021787]
[1748545327743,0.3864918,105950.0,105940.0,0.00021787]
[1748545327954,0.6859318,105950.0,105940.0,0.00021787]
[1748545328208,0.69467686,105950.0,105940.0,0.00021787]
[1748545328391,0.6859318,105950.0,105940.0,0.00021787]
[1748545328614,0.30159855,105950.0,105940.0,0.00021787]
[1748545328837,0.69459853,105950.0,105940.0,0.00021787]
[1748545329264,0.70355349,105950.0,105940.0,0.00021787]
[1748545329479,0.70355294,105950.0,105940.0,0.00021787]
[1748545329942,0.30180676,105950.0,105940.0,0.00021787]
[1748545330155,0.70347247,105950.0,105940.0,0.00021787]
[1748545331056,0.7034742,105950.0,105940.0,0.00021787]
[1748545331276,0.70347402,105950.0,105940.0,0.00021787]
[1748545331492,0.69472849,105950.0,105940.0,0.00021787]
[1748545331920,0.70347556,105950.0,105940.0,0.00021787]
[1748545332360,0.70347808,105950.0,105940.0,0.00021787]
[1748545333003,0.70347831,105950.0,105940.0,0.00021787]
[1748545333222,0.70347832,105950.0,105940.0,0.00021787]
[1748545333458,1.0890816,105950.0,105940.0,0.00021787]
[1748545333699,1.09152435,105950.0,105940.0,0.00021787]
[1748545333924,1.10643309,105950.0,105940.0,0.00021787]
[1748545334153,1.09523723,105950.0,105940.0,0.00021787]
[1748545334368,1.09559723,105950.0,105940.0,0.00021787]
[1748545335103,1.09560585,105950.0,105940.0,0.00021787]
[1748545336445,1.58350585,105950.0,105940.0,0.00021787]
[1748545337807,1.58402585,105950.0,105940.0,0.00021787]
[1748545338032,1.28462585,105950.0,105940.0,0.00021787]
[1748545338259,1.58398585,105950.0,105940.0,0.00021787]
[1748545339254,1.19022898,105950.0,105940.0,0.00021787]
[1748545339473,1.58402898,105950.0,105940.0,0.00021787]
[1748545340177,1.19022898,105950.0,105940.0,0.00021787]
[1748545340393,1.58398898,105950.0,105940.0,0.00021787]
[1748545341908,1.58382898,105950.0,105940.0,0.00021787]
[1748545342540,1.19022898,105950.0,105940.0,0.00021787]
[1748545342745,1.58370898,105950.0,105940.0,0.00021787]
[1748545343587,1.58358898,105950.0,105940.0,0.00021787]
[1748545344431,1.19022898,105950.0,105940.0,0.00021787]
[1748545344641,1.58354898,105950.0,105940.0,0.00021787]
[1748545345043,1.19022898,105950.0,105940.0,0.00021787]
[1748545345273,1.58346898,105950.0,105940.0,0.00021787]
[1748545345490,1.59467408,105950.0,105940.0,0.00021787]
[1748545345701,1.20143408,105950.0,105940.0,0.00021787]
[1748545345969,0.80092534,105950.0,105940.0,0.04581787]
[1748545346128,1.09739729,105950.0,105940.0,0.02291787]
[1748545346346,1.09739702,105950.0,105940.0,0.02291787]
[1748545346559,1.09739702,105950.0,105940.0,0.00021787]
[1748545346975,1.08864024,105950.0,105940.0,0.00021787]
[1748545347229,0.79847263,105950.0,105940.0,0.00021787]
[1748545347400,1.09727263,105950.0,105940.0,0.00021787]
[1748545347641,0.7895035,105950.0,105940.0,0.00021787]
[1748545347828,1.0794718,105950.0,105940.0,0.04471787]
[1748545348037,0.7807518,105950.0,105940.0,0.04471787]
[1748545348246,0.60028332,105950.0,105940.0,0.04471787]
[1748545348451,0.60028353,105950.0,105940.0,0.04471787]
[1748545348661,0.30160353,105950.0,105940.0,0.04471787]
[1748545348869,0.5914518,105950.0,105940.0,0.04471787]
[1748545349071,0.6002032,105950.0,105940.0,0.04471787]
[1748545349273,0.6001632,105950.0,105940.0,0.04471787]
[1748545349696,0.5914118,105950.0,105940.0,0.04471787]
[1748545350112,0.20179785,105950.0,105940.0,0.04471787]
[1748545350327,0.50027785,105950.0,105940.0,0.04471787]
[1748545352022,0.20179785,105950.0,105940.0,0.04471787]
[1748545352236,0.222082,105950.0,105940.0,1.19276432]
[1748545352460,0.2032066,105950.0,105940.0,1.28527554]
[1748545352705,0.2032066,105950.0,105940.0,1.48350076]
[1748545352911,0.1992066,105950.0,105940.0,1.29471484]
[1748545353122,0.1992066,105950.0,105940.0,1.28527554]
[1748545353378,0.20864465,105950.0,105940.0,1.48450094]
[1748545353683,0.20864465,105950.0,105940.0,1.50337909]
[1748545353740,0.21808306,105950.0,105940.0,1.51181794]
[1748545353917,0.21708306,105950.0,105940.0,1.52125671]
[1748545354119,0.21708306,105950.0,105940.0,1.52425671]
[1748545354331,0.21708306,105950.0,105940.0,1.51481794]
[1748545354525,0.21708306,105950.0,105940.0,1.52425671]
[1748545354729,0.21720176,105960.0,105950.0,0.5844066]
[1748545355015,0.03788748,105960.0,105950.0,1.39489926]
[1748545355331,0.38109103,105970.0,105960.0,0.05974085]
[1748545355531,0.38109103,105970.0,105960.0,0.06209993]
[1748545355959,0.1,105960.0,105950.0,0.13595395]
[1748545356165,0.19820651,105950.0,105940.0,0.04911787]
[1748545356368,0.20798127,105950.0,105940.0,0.05403966]
[1748545356751,0.20798127,105950.0,105940.0,0.0541792]
[1748545357007,0.20798127,105950.0,105940.0,0.0511792]
[1748545358475,0.20798127,105950.0,105940.0,0.0541792]
[1748545358913,0.19820642,105950.0,105940.0,1.17782565]
[1748545359134,0.28875047,105960.0,105950.0,0.40014085]
[1748545359350,0.18875047,105960.0,105950.0,0.58370602]
[1748545359564,0.28875047,105960.0,105950.0,1.19175767]
[1748545360030,0.18875047,105960.0,105950.0,1.2062844]
[1748545360494,0.1981879,105960.0,105950.0,1.2082844]
[1748545360724,0.20762524,105960.0,105950.0,1.2082844]
[1748545363878,0.19818745,105960.0,105950.0,1.2082844]
[1748545364139,0.21706186,105960.0,105950.0,1.2082844]
[1748545364372,0.23593619,105960.0,105950.0,1.2082844]
[1748545364599,0.22649867,105960.0,105950.0,1.2082844]
[1748545365042,0.30939975,105970.0,105950.0,1.38920507]
[1748545365274,0.30939975,105970.0,105960.0,0.5823529]
[1748545365501,0.30939975,105970.0,105960.0,1.28055682]
[1748545365730,0.31883629,105970.0,105960.0,1.28055682]
[1748545365956,0.30939975,105970.0,105960.0,1.28055682]
[1748545366188,0.2999633,105970.0,105960.0,1.28055682]
[1748545366500,0.28109103,105970.0,105960.0,1.50272309]
[1748545366587,0.2999633,105970.0,105960.0,1.29509767]
[1748545366802,0.31883647,105970.0,105960.0,1.29509767]
[1748545367018,0.2999642,105970.0,105960.0,1.29437767]
[1748545367223,0.2999642,105970.0,105960.0,0.68732602]
[1748545367433,0.2999642,105970.0,105960.0,0.68728602]
[1748545367646,0.2999642,105970.0,105960.0,1.29533767]
[1748545369025,0.29052766,105970.0,105960.0,1.29533767]
[1748545369437,0.29052766,105970.0,105960.0,1.29545163]
[1748545370068,0.29052766,105970.0,105960.0,0.85237163]
[1748545370300,0.29052766,105970.0,105960.0,1.29453163]
[1748545370943,0.29052766,105970.0,105960.0,0.85237163]
[1748545371151,0.29052766,105970.0,105960.0,1.29421163]
[1748545373627,0.29052766,105970.0,105960.0,0.85237163]
[1748545373842,0.29052766,105970.0,105960.0,1.29325163]
[1748545375357,0.29052766,105970.0,105960.0,0.96537163]
[1748545375596,0.29052766,105970.0,105960.0,1.29273163]
[1748545376257,0.29052721,105970.0,105960.0,1.4814821]
[1748545376477,0.30939958,105970.0,105960.0,0.85237163]
[1748545376685,0.30973842,105970.0,105960.0,0.00111396]
[1748545376952,0.33323842,105970.0,105960.0,0.00111396]
[1748545377187,0.35643842,105970.0,105960.0,0.00111396]
[1748545378090,0.43771761,105970.0,105960.0,0.00111396]
[1748545378724,0.29996366,105970.0,105960.0,0.60916561]
[1748545378932,0.63609842,105970.0,105960.0,0.70167683]
[1748545380673,0.30973842,105970.0,105960.0,0.70167683]
[1748545380898,0.63549842,105970.0,105960.0,0.70167683]
[1748545381129,0.63537842,105970.0,105960.0,0.09362518]
[1748545381353,0.63537842,105970.0,105960.0,0.00111396]
[1748545381354,0.76105761,105970.0,105960.0,0.00111396]
[1748545381612,0.76979202,105970.0,105960.0,0.00111396]
[1748545382084,0.76980153,105970.0,105960.0,0.00111396]
[1748545382305,0.76980152,105970.0,105960.0,0.00111396]
[1748545382534,0.44416152,105970.0,105960.0,0.00111396]
[1748545382761,0.74720162,105970.0,105960.0,0.00111396]
[1748545382981,0.33090767,105970.0,105960.0,0.00111396]
[1748545383233,0.65606767,105970.0,105960.0,0.00111396]
[1748545383663,0.62512366,105970.0,105960.0,0.00111396]
[1748545383890,0.43561761,105970.0,105960.0,0.00111396]
[1748545384125,0.78535437,105970.0,105960.0,0.00111396]
[1748545384412,0.78535437,105970.0,105940.0,0.00123954]
[1748545384413,0.59224447,105950.0,105940.0,0.00123954]
[1748545384627,0.34318682,105950.0,105940.0,0.00123954]
[1748545384863,0.64588682,105950.0,105940.0,0.00123954]
[1748545385091,0.63758908,105950.0,105940.0,0.00123954]
[1748545385332,0.68218908,105950.0,105940.0,0.00123954]
[1748545386065,0.66785069,105950.0,105940.0,0.17239415]
[1748545386281,0.66785069,105950.0,105940.0,0.18965113]
[1748545386696,0.64575069,105950.0,105940.0,0.18965113]
[1748545386925,0.62725069,105950.0,105940.0,0.18965113]
[1748545387154,0.53571674,105950.0,105940.0,0.18965113]
[1748545387358,0.55803674,105950.0,105940.0,0.18965113]
[1748545387791,0.2211715,105950.0,105940.0,0.79770278]
[1748545388003,0.2211715,105950.0,105940.0,0.81224363]
[1748545388876,0.3211715,105950.0,105940.0,0.81224363]
[1748545389304,0.2211715,105950.0,105940.0,0.81224363]
[1748545389771,0.22105988,105950.0,105940.0,0.81224363]
[1748545390192,0.22105988,105950.0,105940.0,0.18965113]
[1748545390411,0.26775988,105950.0,105940.0,0.18965113]
[1748545391087,0.24405988,105950.0,105940.0,0.18965113]
[1748545392202,0.56693988,105950.0,105940.0,0.18965113]
[1748545392417,0.54393988,105950.0,105940.0,0.18965113]
[1748545392623,0.22105988,105950.0,105940.0,0.18965113]
[1748545393490,0.22093608,105950.0,105940.0,0.18965113]
[1748545395390,0.22093608,105950.0,105940.0,1.17594363]
[1748545395391,0.31116132,105950.0,105940.0,1.17594363]
[1748545395599,0.31116132,105950.0,105940.0,1.61135758]
[1748545395600,0.2305204,105950.0,105940.0,1.61135758]
[1748545395814,0.3210827,105950.0,105940.0,1.61135758]
[1748545396242,0.3210827,105950.0,105940.0,2.01135758]
[1748545396447,0.3210827,105950.0,105940.0,2.12079758]
[1748545396663,0.30764483,105950.0,105940.0,2.12079758]
[1748545396871,0.30764483,105950.0,105940.0,2.12279758]
[1748545397094,0.31741959,105950.0,105940.0,0.54619198]
[1748545397329,0.62930145,105950.0,105940.0,0.54619198]
[1748545397548,0.29820669,105950.0,105940.0,1.20054363]
[1748545397757,0.29820669,105950.0,105940.0,1.29159758]
[1748545397963,0.29820669,105950.0,105940.0,1.29259758]
[1748545398170,0.29804513,105950.0,105940.0,1.29259758]
[1748545398378,0.29804513,105950.0,105940.0,1.28959758]
[1748545398831,0.29787449,105950.0,105940.0,1.28959758]
[1748545399039,0.29787449,105950.0,105940.0,1.29059758]
[1748545400714,0.32127449,105950.0,105940.0,0.53065113]
[1748545400916,0.64175449,105950.0,105940.0,0.53065113]
[1748545401124,0.61827449,105950.0,105940.0,0.53065113]
[1748545401547,0.62804925,105950.0,105940.0,0.53065113]
[1748545401745,0.29787449,105950.0,105940.0,1.15324363]
[1748545403236,0.29787449,105950.0,105940.0,1.15342856]
[1748545404089,0.29787449,105950.0,105940.0,0.54537691]
[1748545404300,0.29787449,105950.0,105940.0,1.15242856]
[1748545405577,0.29787449,105950.0,105940.0,1.28888251]
[1748545407508,0.31675041,105950.0,105940.0,1.28888251]
[1748545407933,0.21675041,105950.0,105940.0,1.28888251]
[1748545408153,0.31675041,105950.0,105940.0,2.00744251]
[1748545408376,0.21675041,105950.0,105940.0,2.00744251]
[1748545408612,0.20731148,105950.0,105940.0,2.19622861]
[1748545408839,0.22618767,105950.0,105940.0,2.00744251]
[1748545409687,0.21674944,105950.0,105940.0,2.20566791]
[1748545409901,0.18843608,105950.0,105940.0,2.23398465]
[1748545410113,0.20731148,105950.0,105940.0,2.23398482]
[1748545410324,0.21707761,105960.0,105950.0,0.386]
[1748545410540,0.21707761,105960.0,105950.0,0.67576517]
[1748545410758,0.21707761,105960.0,105950.0,1.28381682]
[1748545410980,0.21707761,105960.0,105950.0,1.68381682]
[1748545411243,0.21707761,105960.0,105950.0,1.8725851]
[1748545411465,0.31813895,105970.0,105960.0,0.386]
[1748545411685,0.32757549,105970.0,105960.0,0.56956517]
[1748545411902,0.32757549,105970.0,105960.0,1.49529682]
[1748545412121,0.2992665,105970.0,105960.0,2.10802548]
[1748545412335,0.3087026,105970.0,105960.0,2.10802548]
[1748545412546,0.29926642,105970.0,105960.0,2.12689989]
[1748545412765,0.30870251,105970.0,105960.0,2.12789989]
[1748545413397,0.29926642,105970.0,105960.0,2.14677386]
[1748545413608,0.3087026,105970.0,105960.0,2.11846273]
[1748545413828,0.31813896,105970.0,105960.0,2.10902566]
[1748545414070,0.31813896,105970.0,105960.0,2.118463]
[1748545414277,0.31813896,105970.0,105960.0,2.10902566]
[1748545414482,0.31813896,105970.0,105960.0,2.11846309]
[1748545414899,0.31813896,105970.0,105960.0,1.92027519]
[1748545415323,0.31813896,105970.0,105960.0,1.92971262]
[1748545415533,0.31813896,105970.0,105960.0,1.92027519]
[1748545415744,0.31813896,105970.0,105960.0,2.11846309]
[1748545415964,0.31813896,105970.0,105960.0,2.10902566]
[1748545416613,0.31813896,105970.0,105960.0,1.92027519]
[1748545416813,0.32757541,105970.0,105960.0,1.92027519]
[1748545417698,0.32757541,105970.0,105960.0,1.91083767]
[1748545418166,0.22571484,105990.0,105980.0,0.23604]
[1748545418375,0.02758313,105990.0,105980.0,0.6220765]
[1748545418585,0.03701771,105990.0,105980.0,1.23012815]
[1748545418814,0.02758313,105990.0,105980.0,1.63012815]
[1748545419040,0.01814873,105990.0,105980.0,2.319313]
[1748545419254,0.02758304,105990.0,105980.0,2.16721114]
[1748545419466,0.00876384,105990.0,105980.0,2.01477814]
[1748545419677,0.00876384,105990.0,105980.0,2.36931899]
[1748545420117,0.01811081,105990.0,105980.0,2.37131899]
[1748545420543,0.00867667,105990.0,105980.0,2.37131899]
[1748545420756,0.00867667,105990.0,105980.0,2.39962599]
[1748545421403,0.01811081,105990.0,105980.0,2.39962599]
[1748545421844,0.00867667,105990.0,105980.0,2.39962599]
[1748545422494,0.22567665,105990.0,105980.0,1.96811088]
[1748545422760,0.03697961,105990.0,105980.0,2.35828628]
[1748545423190,0.2351115,105990.0,105980.0,2.31031588]
[1748545423497,0.2351115,105990.0,105980.0,2.31975117]
[1748545423702,0.23511141,105990.0,105980.0,1.77317488]
[1748545423915,0.23511141,105990.0,105980.0,2.31946108]
[1748545424150,0.21624207,105990.0,105980.0,2.71742588]
[1748545424365,0.21624207,105990.0,105980.0,2.75641299]
[1748545424574,0.03697952,105990.0,105980.0,2.75641299]
[1748545424986,0.02754503,105990.0,105980.0,2.75641299]
[1748545425200,0.03697943,105990.0,105980.0,2.75641299]
[1748545425408,0.02754494,105990.0,105980.0,2.75641299]
[1748545425832,0.01811081,105990.0,105980.0,2.75641299]
[1748545426056,0.01886658,106000.0,105990.0,0.21700051]
[1748545426269,0.02830009,106000.0,105990.0,0.97906309]
[1748545426500,0.03773369,106000.0,105990.0,0.97906309]
[1748545426708,0.23584796,106000.0,105990.0,1.33336336]
[1748545426928,0.01886711,106000.0,105990.0,1.35223189]
[1748545427820,0.20754609,106000.0,105990.0,1.39643189]
[1748545428037,0.02830018,106000.0,105990.0,1.39743189]
[1748545428658,0.02830018,106000.0,105990.0,0.99743189]
[1748545428870,0.03773387,106000.0,105990.0,0.99743189]
[1748545429074,0.22641311,106000.0,105990.0,0.99743189]
[1748545429305,0.21697942,106000.0,105990.0,0.99653804]
[1748545429509,0.02830018,106000.0,105990.0,0.99653804]
[1748545429723,0.02830018,106000.0,105990.0,0.99853804]
[1748545431308,0.01886658,106000.0,105990.0,1.33953804]
[1748545431521,0.00943325,106000.0,105990.0,1.94758969]
[1748545431967,0.01886676,106000.0,105990.0,1.94758969]
[1748545432397,0.01886676,106000.0,105990.0,1.33953804]
[1748545432976,0.01886676,106000.0,105990.0,1.65181804]
[1748545433467,0.22641347,106000.0,105990.0,1.26703511]
[1748545433678,0.22641347,106000.0,105990.0,1.69637605]
[1748545433679,0.21698022,106000.0,105990.0,1.69637605]
[1748545434098,0.21698022,106000.0,105990.0,1.70581045]
[1748545434344,0.21698022,106000.0,105990.0,1.28157614]
[1748545434588,0.21698022,106000.0,105990.0,1.27214147]
[1748545434797,0.21698022,106000.0,105990.0,1.68666147]
[1748545435011,0.21698022,106000.0,105990.0,1.7055309]
[1748545435232,0.21698022,106000.0,105990.0,1.28157623]
[1748545435450,0.21698022,106000.0,105990.0,1.7054909]
[1748545435690,0.21698022,106000.0,105990.0,1.71492548]
[1748545435906,0.21698022,106000.0,105990.0,1.09743925]
[1748545436120,0.21698022,106000.0,105990.0,1.71492548]
[1748545436334,0.21698022,106000.0,105990.0,1.69605623]
[1748545436549,0.21698022,106000.0,105990.0,1.7054909]
[1748545437249,0.21698022,106000.0,105990.0,1.71492548]
[1748545437485,0.207546,106000.0,105990.0,1.69553614]
[1748545437698,0.21697978,106000.0,105990.0,1.70497072]
[1748545437918,0.21697978,106000.0,105990.0,1.69553623]
[1748545438182,0.21697978,106000.0,105990.0,2.05783492]
[1748545438405,0.25404653,106000.0,105990.0,1.75893432]
[1748545439064,0.20754653,106000.0,105990.0,2.05755474]
[1748545439288,0.20754653,106000.0,105990.0,1.74647474]
[1748545439540,0.20754653,106000.0,105990.0,1.54834312]